bitfinex-derivatives/quotes_ETHF0:USTF0_20250803
["timestamp","ask_amount","ask_price","bid_price","bid_amount"]
[1754233206710,5.3746982,3472.0,3471.9,22.86838129]
[1754233208413,5.3746982,3472.0,3471.9,3.16738129]
[1754233208614,5.3746982,3472.0,3471.9,22.86938129]
[1754233213415,5.9507382,3472.0,3471.9,22.86938129]
[1754233213721,5.9507382,3472.0,3471.9,3.16738129]
[1754233214123,5.3746982,3472.0,3471.9,22.86838129]
[1754233215117,5.9507382,3472.0,3471.9,22.86938129]
[1754233215715,5.9507382,3472.0,3471.9,1.03688129]
[1754233215923,5.9507382,3472.0,3471.2,2.1035]
[1754233215924,0.8324,3471.3,3471.2,2.1035]
[1754233216221,5.3686982,3471.3,3471.2,21.8045]
[1754233216916,5.3686982,3471.3,3470.8,41.467]
[1754233216917,4.9577982,3471.3,3470.8,41.8637]
[1754233217117,4.9577982,3471.3,3470.1,3.61677931]
[1754233217118,0.8324,3470.3,3470.2,3.2078]
[1754233217317,7.0370282,3470.9,3470.3,0.57632]
[1754233217523,3.2078,3470.9,3470.7,2.1035]
[1754233217723,4.2516,3470.9,3470.8,21.8045]
[1754233217923,4.9126,3470.9,3470.8,21.8045]
[1754233218119,5.3235,3470.9,3470.8,2.1035]
[1754233218426,5.3235,3470.9,3470.8,21.8055]
[1754233219522,3.2078,3470.9,3470.8,21.8055]
[1754233219917,4.1253982,3471.3,3470.9,0.57622]
[1754233220225,4.0361982,3471.3,3471.2,1.7109]
[1754233220429,3.2529982,3471.3,3471.2,21.8045]
[1754233220723,1.85948,3471.2,3470.5,19.701]
[1754233220915,2.1157,3470.7,3470.6,19.701]
[1754233221221,0.8324,3470.0,3469.9,0.5375]
[1754233221424,0.8324,3470.0,3469.9,0.9342]
[1754233221425,4.0853982,3470.0,3469.9,0.9342]
[1754233221626,4.0853982,3470.0,3469.9,0.6542]
[1754233221825,4.0853982,3470.0,3469.9,20.3712]
[1754233222025,5.3686982,3470.0,3469.9,20.3712]
[1754233222225,2.41849,3469.9,3469.8,0.6542]
[1754233222425,2.41849,3469.9,3469.8,20.3712]
[1754233222426,2.1157,3469.9,3469.8,20.3712]
[1754233222621,2.1157,3469.9,3469.8,0.6542]
[1754233222821,2.1157,3469.9,3469.8,20.3702]
[1754233223016,2.1157,3469.9,3469.7,19.716]
[1754233223222,5.89991,3469.8,3469.7,19.716]
[1754233223424,0.5342,3469.2,3469.1,4.32182]
[1754233223617,5.3686982,3469.2,3469.1,22.39402]
[1754233223822,5.3686982,3469.2,3469.1,21.8175]
[1754233224225,5.3686982,3469.2,3469.1,21.8235]
[1754233224427,5.3686982,3469.2,3469.1,2.1035]
[1754233224628,5.3686982,3469.2,3469.1,21.8255]
[1754233225224,3.2078,3469.8,3469.7,0.57642]
[1754233225527,3.2529982,3469.9,3469.8,2.1035]
[1754233225528,0.5588,3469.9,3469.8,2.1035]
[1754233225728,5.3686982,3469.9,3469.8,2.1035]
[1754233225929,5.3686982,3469.9,3469.8,0.2575]
[1754233226226,2.1157,3469.5,3469.3,0.3926]
[1754233226426,4.8836982,3469.4,3469.3,0.3926]
[1754233226628,5.3686982,3469.4,3469.3,20.1316]
[1754233227232,5.3686982,3469.4,3469.3,20.5283]
[1754233227530,2.1157,3469.2,3469.1,19.741]
[1754233227728,2.1157,3469.0,3468.8,19.739]
[1754233228031,5.3686982,3469.0,3468.9,2.748678]
[1754233228232,5.3686982,3469.0,3468.9,3.141278]
[1754233229831,5.3686982,3469.0,3468.9,22.883278]
[1754233230030,4.0853982,3469.0,3468.9,0.2575]
[1754233230227,4.0853982,3469.0,3468.9,1.0468]
[1754233230427,4.0853982,3469.0,3468.9,1.7916]
[1754233230729,5.3686982,3469.0,3468.9,1.7916]
[1754233231139,0.4109,3469.1,3469.0,0.8494]
[1754233231434,2.1157,3469.1,3469.0,0.8494]
[1754233231833,2.1157,3469.1,3469.0,2.1035]
[1754233233834,3.2529982,3469.2,3469.0,2.68003]
[1754233234133,3.5511982,3469.2,3469.1,0.8494]
[1754233234333,4.0361982,3469.2,3469.1,2.1035]
[1754233234736,3.2529982,3469.2,3469.1,2.1035]
[1754233234929,4.2967982,3469.2,3469.1,2.1035]
[1754233235132,3.8117982,3469.2,3469.1,2.1035]
[1754233235337,3.2078,3469.7,3469.6,0.8494]
[1754233235638,5.3235,3469.7,3469.6,2.1035]
[1754233235833,4.5252,3469.7,3469.6,21.8625]
[1754233236135,7.2931982,3469.7,3469.6,21.8625]
[1754233236333,6.4607982,3469.7,3469.6,21.8625]
[1754233236933,3.2078,3469.7,3469.6,21.8625]
[1754233237337,6.4607982,3469.7,3469.6,21.8625]
[1754233237838,3.2078,3469.7,3469.6,21.8625]
[1754233242743,3.6928,3469.7,3469.6,21.8625]
[1754233242939,0.485,3469.7,3469.6,21.8625]
[1754233243138,1.0438,3469.7,3469.6,21.8625]
[1754233243345,1.4312,3469.7,3469.6,21.8625]
[1754233243846,1.3174,3469.7,3469.6,21.8625]
[1754233244145,0.2982,3469.7,3469.6,21.8625]
[1754233244443,0.757,3469.7,3469.6,21.8625]
[1754233245848,1.0274,3469.7,3469.6,21.8625]
[1754233246051,1.4548,3469.7,3469.6,21.8625]
[1754233246246,1.7382,3469.7,3469.6,21.8625]
[1754233246643,1.7382,3469.7,3469.6,2.1035]
[1754233246843,1.7382,3469.7,3469.6,21.8465]
[1754233247449,1.7382,3469.7,3469.6,21.8455]
[1754233250043,1.7382,3469.7,3469.6,21.8405]
[1754233250242,1.3108,3469.7,3469.6,21.8405]
[1754233250443,2.125,3469.7,3469.6,21.8405]
[1754233251947,1.7382,3469.7,3469.6,21.8385]
[1754233256052,2.125,3469.7,3469.6,21.8385]
[1754233256957,1.7382,3469.7,3469.6,21.8385]
[1754233257856,2.125,3469.7,3469.6,21.8385]
[1754233259156,2.1438,3469.6,3469.5,3.2078]
[1754233259455,2.1438,3468.8,3468.3,6.82457931]
[1754233259647,4.1237982,3468.8,3468.3,3.2078]
[1754233259956,5.3967982,3468.4,3468.3,1.3882]
[1754233260153,5.3967982,3468.4,3468.3,21.1262]
[1754233260357,5.0099982,3468.7,3468.6,2.1699]
[1754233260660,2.1438,3468.4,3468.3,1.8731]
[1754233260854,5.3967982,3468.4,3468.3,21.6141]
[1754233262061,5.3967982,3468.4,3468.3,21.9109]
[1754233262360,5.3967982,3468.4,3468.3,2.1699]
[1754233262558,5.3967982,3468.4,3468.3,21.9159]
[1754233263962,5.3967982,3468.4,3468.3,2.1699]
[1754233264265,5.3967982,3468.4,3468.3,21.9139]
[1754233264859,3.2078,3468.8,3468.7,2.74649]
[1754233265058,3.2078,3468.8,3468.7,22.48749]
[1754233265258,5.3516,3468.8,3468.7,21.9109]
[1754233265657,5.3516,3468.8,3468.7,1.685]
[1754233265866,5.3516,3468.8,3468.7,20.7272]
[1754233266062,2.1438,3468.8,3468.7,20.7272]
[1754233266260,2.1438,3468.8,3468.7,21.1412]
[1754233266864,2.1438,3468.8,3468.7,21.9229]
[1754233267663,3.2529982,3468.9,3468.3,3.2078]
[1754233267861,3.2529982,3468.4,3468.3,25.1267]
[1754233268168,3.2529982,3468.4,3468.3,25.70335]
[1754233268371,4.5825982,3468.4,3468.3,25.1267]
[1754233268666,5.3967982,3468.4,3468.3,22.9568]
[1754233268867,5.3967982,3468.4,3468.3,25.1267]
[1754233269066,5.3967982,3468.4,3468.3,21.9319]
[1754233269270,5.3967982,3468.4,3468.3,21.447]
[1754233269568,5.3967982,3468.4,3468.3,21.1502]
[1754233270864,5.3967982,3468.4,3468.3,21.9319]
[1754233271763,5.3967982,3468.4,3468.2,0.5486]
[1754233271764,1.44746,3468.3,3468.2,0.5486]
[1754233272069,1.44746,3468.3,3468.2,20.7292]
[1754233272070,5.3516,3468.3,3468.2,20.7292]
[1754233272468,5.3516,3468.3,3468.2,21.1432]
[1754233272861,5.3516,3468.3,3468.2,1.3882]
[1754233273061,5.3516,3468.3,3468.2,21.1442]
[1754233273262,5.3516,3468.3,3468.2,20.7302]
[1754233274169,5.3516,3468.3,3468.2,20.7282]
[1754233274469,0.5294,3467.7,3467.6,1.3274]
[1754233274768,5.3823982,3467.7,3467.6,21.8736]
[1754233274971,5.3823982,3467.7,3467.6,0.4007]
[1754233275165,2.1294,3467.6,3467.5,0.258]
[1754233275363,2.1294,3467.6,3467.5,19.764]
[1754233276371,2.1294,3467.6,3467.5,20.8375]
[1754233276561,2.1294,3467.6,3467.5,19.764]
[1754233277164,2.1294,3467.6,3467.5,20.022]
[1754233277367,2.1294,3467.6,3467.5,20.4368]
[1754233277567,2.1294,3467.6,3467.5,0.6728]
[1754233277765,2.1294,3467.6,3467.5,20.4328]
[1754233277964,2.1294,3467.6,3467.5,0.6728]
[1754233278271,2.1294,3467.6,3467.5,21.0894]
[1754233278569,2.1294,3467.6,3467.5,21.8826]
[1754233279480,2.1294,3467.6,3467.5,2.1206]
[1754233279779,7.7660982,3467.9,3467.8,0.817]
[1754233279979,8.1802982,3467.9,3467.8,21.8806]
[1754233280275,8.1802982,3467.9,3467.4,0.5768]
[1754233280276,7.8823382,3467.9,3467.4,0.5768]
[1754233280476,4.0977982,3467.5,3467.4,1.9042]
[1754233280676,5.3823982,3467.5,3467.4,22.1513]
[1754233280875,5.3823982,3467.5,3467.4,21.5805]
[1754233282273,5.3823982,3467.5,3467.4,1.3274]
[1754233282474,8.5901982,3467.5,3467.4,0.6728]
[1754233282677,8.5901982,3467.5,3467.4,20.4358]
[1754233283981,8.5901982,3467.5,3467.4,20.8365]
[1754233284182,8.5901982,3467.5,3467.4,1.0735]
[1754233284482,8.5901982,3467.5,3467.4,20.8335]
[1754233284776,8.5901982,3467.5,3467.4,1.8155]
[1754233284980,8.5901982,3467.5,3467.4,21.8786]
[1754233285181,8.5901982,3467.5,3467.4,2.1206]
[1754233285384,8.5901982,3467.5,3467.4,20.5502]
[1754233285879,8.5901982,3467.5,3467.4,21.0844]
[1754233286184,8.5901982,3467.5,3467.4,21.5725]
[1754233286480,8.5901982,3467.5,3467.4,21.8776]
[1754233287479,8.5901982,3467.5,3467.4,2.1206]
[1754233287677,7.2366982,3467.5,3467.4,21.8786]
[1754233288078,7.9096982,3467.5,3467.4,21.8786]
[1754233288282,0.5294,3467.0,3466.9,0.9267]
[1754233288476,1.3535,3466.7,3466.6,0.258]
[1754233288785,1.3535,3466.7,3466.6,20.4358]
[1754233288786,5.3823982,3466.7,3466.6,20.4358]
[1754233288974,0.5294,3466.0,3465.9,1.03867626]
[1754233289180,4.6064982,3466.0,3465.9,1.03867626]
[1754233289385,0.9436,3466.0,3465.9,20.81267626]
[1754233289578,1.259,3466.0,3465.9,22.14007626]
[1754233289883,1.7195,3466.0,3465.9,22.14007626]
[1754233290081,2.1294,3466.0,3465.9,1.03867626]
[1754233290580,0.9436,3465.4,3465.3,1.3274]
[1754233290886,0.5785,3465.4,3465.3,21.1604]
[1754233291076,2.1294,3465.4,3465.3,1.3274]
[1754233291274,1.7152,3465.2,3465.1,1.3274]
[1754233291485,4.9681982,3465.2,3465.1,1.3274]
[1754233291988,5.9595882,3465.2,3465.1,19.87]
[1754233292184,2.24611,3465.0,3464.9,0.258]
[1754233292376,2.2462,3464.5,3464.4,1.3274]
[1754233292573,5.4991982,3464.5,3464.4,1.3274]
[1754233292772,5.3823982,3464.5,3464.4,21.1974]
[1754233292980,5.3823982,3464.5,3464.4,1.3274]
[1754233293282,5.3823982,3464.5,3464.4,21.1994]
[1754233293581,5.3823982,3464.5,3463.3,3.2078]
[1754233293582,0.57743,3463.7,3463.3,3.2078]
[1754233293790,4.9724982,3463.4,3463.3,0.9126]
[1754233294083,4.9724982,3463.4,3462.9,4.24737608]
[1754233294084,1.2547,3463.0,3462.9,1.03957608]
[1754233294381,0.8448,3462.4,3462.3,1.6325]
[1754233294587,4.0977982,3463.0,3462.9,0.817]
[1754233294785,4.0977982,3463.0,3462.0,19.895]
[1754233294786,0.8448,3462.7,3462.0,3.6085]
[1754233295087,3.2529982,3462.1,3461.3,0.57782]
[1754233295385,0.050273,3463.0,3461.2,3.2078]
[1754233295681,3.2078,3462.9,3462.5,0.4148]
[1754233295887,1.2846,3462.7,3462.6,0.4881]
[1754233296087,0.4142,3463.5,3462.7,0.9029]
[1754233296278,0.8747,3463.8,3463.4,3.2078]
[1754233296474,0.4142,3464.4,3463.7,0.9029]
[1754233296675,0.83460128,3464.3,3464.2,0.9029]
[1754233296982,1.84425169,3465.3,3464.8,0.57724]
[1754233297287,0.83447857,3465.2,3465.1,1.06529]
[1754233297486,1.53033867,3465.2,3465.1,21.84809]
[1754233297782,0.4111,3466.0,3465.9,0.5935]
[1754233297978,2.04800869,3466.3,3466.0,0.57704]
[1754233298178,1.46264869,3466.3,3466.2,0.57701]
[1754233298379,1.28014869,3466.4,3466.2,0.57701]
[1754233298573,1.28014869,3466.4,3465.9,23.5788]
[1754233298574,0.4099,3467.1,3466.8,0.5769]
[1754233298781,2.98824164,3467.6,3467.0,3.2078]
[1754233298986,2.98824164,3467.6,3466.1,5.44372914]
[1754233298987,0.8747,3467.5,3467.1,23.6608]
[1754233299185,0.4099,3467.4,3467.1,22.10290693]
[1754233299385,0.17294655,3467.3,3467.1,22.10290693]
[1754233299590,0.4099,3467.3,3467.1,22.10290693]
[1754233300187,3.2078,3467.8,3467.1,22.10290693]
[1754233300482,0.17300251,3467.7,3467.1,22.10290693]
[1754233300686,5.73554164,3467.8,3467.1,22.10290693]
[1754233300887,0.17298876,3467.7,3467.1,22.10290693]
[1754233301088,1.2846,3467.9,3467.1,22.10290693]
[1754233301286,1.45764997,3467.8,3467.1,18.89510693]
[1754233301489,1.2846,3467.8,3467.1,18.89510693]
[1754233301789,0.8241,3467.7,3467.1,18.89510693]
[1754233303291,0.8241,3467.7,3467.1,19.47194693]
[1754233303493,1.01626785,3467.4,3467.1,18.89510693]
[1754233303681,1.01626785,3467.5,3467.1,19.23010693]
[1754233303882,1.01626785,3467.6,3467.4,0.67]
[1754233304082,1.01626785,3467.8,3467.3,3.2078]
[1754233304288,1.01626785,3467.7,3467.3,3.2078]
[1754233304585,1.01626785,3468.0,3467.6,0.335]
[1754233304784,1.59436785,3468.1,3467.8,0.67]
[1754233304989,0.5781,3468.0,3467.9,0.335]
[1754233305385,1.1538,3468.0,3467.9,0.335]
[1754233306089,1.1538,3468.0,3467.7,20.421]
[1754233306090,0.4547,3468.0,3467.6,0.67]
[1754233306385,3.2078,3468.6,3467.8,3.8778]
[1754233306585,0.4547,3468.7,3468.2,3.2078]
[1754233306894,0.5781,3468.6,3468.5,0.335]
[1754233307184,4.22406785,3469.1,3468.3,20.413]
[1754233307384,0.5781,3468.9,3468.6,0.335]
[1754233307590,0.5757,3468.9,3468.6,0.335]
[1754233307790,0.5781,3468.8,3468.7,0.335]
[1754233308492,0.5781,3468.8,3468.7,0.67]
[1754233309787,0.5781,3468.8,3468.7,1.24659]
[1754233309994,1.5781,3469.0,3468.8,0.335]
[1754233310287,1.0,3469.0,3468.9,20.731]
[1754233310487,1.5781,3469.0,3468.9,20.731]
[1754233310987,1.5781,3469.0,3468.6,3.2078]
[1754233311189,0.57665,3468.4,3467.9,3.2078]
[1754233311394,3.2078,3468.7,3467.9,3.2078]
[1754233311395,1.6085,3468.6,3467.9,23.5978]
[1754233311688,1.1538,3468.3,3467.9,23.5978]
[1754233311894,1.6085,3467.9,3467.5,3.2078]
[1754233312089,1.6085,3467.7,3467.6,20.421]
[1754233312393,1.6085,3467.7,3467.6,0.335]
[1754233312588,1.0304,3467.7,3466.8,0.335]
[1754233312793,3.2078,3467.8,3466.9,20.414]
[1754233312995,0.57679,3467.5,3466.9,0.57688]
[1754233313196,1.0304,3467.3,3467.0,20.414]
[1754233313396,0.57678,3467.6,3467.0,20.414]
[1754233313595,0.4547,3467.2,3467.0,20.749]
[1754233313892,0.4547,3467.6,3467.0,20.749]
[1754233314286,3.2078,3467.8,3467.0,20.749]
[1754233314287,0.57681,3467.4,3467.0,0.335]
[1754233314491,1.6085,3467.2,3467.1,20.404]
[1754233314993,1.6085,3467.2,3466.7,3.78472]
[1754233315297,1.6085,3466.9,3466.8,20.98391]
[1754233315690,1.6085,3466.9,3466.8,20.404]
[1754233316089,1.6085,3466.9,3466.8,23.6118]
[1754233316290,1.6085,3466.9,3466.8,23.6098]
[1754233316490,1.6085,3466.9,3466.8,23.9373]
[1754233316898,3.2078,3467.4,3466.8,23.9373]
[1754233317196,3.2078,3467.4,3466.9,0.90439]
[1754233317396,1.6085,3467.0,3466.9,0.3275]
[1754233317694,1.6085,3467.0,3466.9,20.7215]
[1754233317893,0.57689,3466.9,3466.8,3.2078]
[1754233318091,1.6085,3466.5,3466.4,3.2078]
[1754233318287,1.1538,3466.4,3466.1,0.57702]
[1754233318499,0.5781,3466.3,3466.2,20.397]
[1754233318885,0.5781,3466.3,3466.0,0.90453]
[1754233319092,0.577,3466.3,3465.9,3.2078]
[1754233319294,1.1538,3465.9,3465.4,3.2078]
[1754233319597,1.6085,3465.9,3465.8,20.397]
[1754233319994,0.5781,3466.1,3465.9,0.57706]
[1754233320295,3.2078,3466.2,3465.9,0.57706]
[1754233320296,1.6085,3466.0,3465.9,0.90456]
[1754233320493,1.0304,3466.4,3466.3,0.57699]
[1754233320694,0.5757,3467.0,3466.4,0.3275]
[1754233320899,0.5781,3466.9,3466.7,0.57692]
[1754233321087,0.5781,3466.9,3466.8,20.7515]
[1754233321397,1.6085,3466.9,3466.8,20.7495]
[1754233321592,1.6085,3466.9,3466.8,20.422]
[1754233321793,1.6085,3466.9,3466.8,20.7495]
[1754233322595,3.2078,3467.2,3466.9,0.57689]
[1754233322897,0.4547,3467.3,3467.2,0.57684]
[1754233323399,1.6085,3466.7,3466.4,3.2078]
[1754233323697,1.0304,3466.6,3466.5,20.414]
[1754233324096,1.6085,3466.6,3466.5,20.414]
[1754233324299,1.6085,3466.6,3466.4,3.2078]
[1754233324300,0.5769,3466.9,3466.4,3.2078]
[1754233324501,1.6085,3466.5,3466.4,3.2078]
[1754233324794,1.6085,3466.5,3466.4,23.6358]
[1754233325201,1.6085,3466.5,3466.4,3.2078]
[1754233325391,1.6085,3466.5,3466.4,20.428]
[1754233325896,1.6085,3466.4,3466.1,0.57702]
[1754233326198,1.1538,3466.2,3466.1,0.57702]
[1754233326395,1.6085,3466.2,3466.1,21.00102]
[1754233326591,1.1538,3466.1,3465.9,3.2078]
[1754233326797,0.57698,3466.4,3466.0,20.419]
[1754233326998,0.57698,3466.4,3465.9,3.2078]
[1754233327196,0.57698,3466.4,3466.1,20.417]
[1754233327394,0.57701,3466.2,3465.9,3.2078]
[1754233327604,1.6085,3466.1,3466.0,20.415]
[1754233328797,2.6788,3466.1,3466.0,20.415]
[1754233329298,2.6788,3466.1,3465.9,0.57705]
[1754233329508,1.0703,3466.1,3465.9,0.57705]
[1754233329899,1.0703,3466.1,3466.0,20.406]
[1754233330504,2.6788,3466.1,3466.0,20.406]
[1754233333207,1.0703,3466.1,3466.0,20.389]
[1754233333509,1.0703,3466.1,3466.0,20.38]
[1754233333709,2.5965,3466.1,3466.0,20.38]
[1754233335913,1.0728,3466.0,3465.9,0.7143]
[1754233336112,1.5181,3466.0,3465.9,21.0773]
[1754233336406,1.5181,3466.0,3465.4,0.3148]
[1754233336407,1.65806,3465.3,3464.8,4.09984]
[1754233336603,1.7441,3465.0,3464.9,21.3841]
[1754233336800,2.599,3465.0,3464.9,21.3841]
[1754233336998,2.599,3465.0,3464.9,1.0291]
[1754233337209,2.599,3465.0,3464.9,21.4051]
[1754233337412,2.599,3465.0,3464.9,0.7143]
[1754233337611,2.599,3465.0,3464.9,21.4051]
[1754233338105,2.599,3465.0,3464.6,0.57727]
[1754233338308,1.0728,3465.0,3464.6,0.57727]
[1754233338510,2.599,3464.7,3464.6,1.0291]
[1754233338812,2.599,3464.7,3464.6,21.3981]
[1754233339515,0.5427,3465.1,3464.7,0.57726]
[1754233339815,2.599,3465.1,3465.0,1.0291]
[1754233340015,2.599,3465.1,3465.0,21.3921]
[1754233340910,2.599,3465.1,3465.0,0.7143]
[1754233341111,1.231,3464.5,3463.9,0.57739]
[1754233341311,1.611,3464.4,3464.3,0.3493]
[1754233341511,2.1537,3464.4,3464.3,1.0291]
[1754233341711,2.599,3464.4,3464.3,1.0291]
[1754233341908,2.599,3464.4,3464.2,20.94433]
[1754233342116,1.0728,3464.4,3464.2,20.367]
[1754233342313,2.599,3464.1,3464.0,3.9221]
[1754233342514,2.599,3464.1,3464.0,24.6059]
[1754233343714,2.599,3464.1,3464.0,23.5768]
[1754233343914,2.599,3464.1,3464.0,23.5738]
[1754233344112,2.599,3464.1,3464.0,23.9388]
[1754233344315,2.599,3464.1,3464.0,21.0713]
[1754233346414,2.599,3464.1,3464.0,21.3771]
[1754233346915,3.2078,3464.3,3464.1,0.57736]
[1754233347122,5.2686,3465.2,3465.1,0.7143]
[1754233347320,3.2078,3465.2,3464.2,3.5226]
[1754233347520,2.0608,3464.6,3464.5,0.7143]
[1754233347714,2.0608,3464.6,3464.4,0.5773]
[1754233347715,2.599,3464.3,3464.2,3.2078]
[1754233347923,2.599,3464.2,3464.1,20.363]
[1754233348113,1.0728,3464.2,3464.1,20.369]
[1754233348423,1.0728,3464.2,3463.6,3.5226]
[1754233348424,1.0728,3464.0,3463.6,3.5226]
[1754233348616,1.0728,3463.8,3463.7,21.66072]
[1754233348820,2.599,3463.8,3463.7,21.66072]
[1754233349522,2.599,3463.8,3463.7,0.57742]
[1754233349722,2.599,3463.8,3463.7,20.94442]
[1754233350016,2.599,3463.8,3463.7,21.97352]
[1754233350318,2.599,3463.8,3463.7,21.0813]
[1754233350518,2.599,3463.8,3463.7,21.3961]
[1754233350824,2.599,3463.8,3463.7,20.732]
[1754233351019,2.599,3463.8,3463.7,0.365]
[1754233351322,2.599,3463.8,3463.4,41.547]
[1754233351323,2.599,3463.5,3463.4,41.547]
[1754233351619,0.57742,3463.7,3463.2,0.5775]
[1754233351620,1.5262,3463.4,3463.2,0.5775]
[1754233351815,1.2943,3463.9,3463.8,0.7143]
[1754233352128,1.0728,3463.3,3463.2,3.9221]
[1754233352416,2.599,3463.3,3463.2,0.7143]
[1754233352624,2.599,3463.3,3462.9,1.93192608]
[1754233352625,2.599,3463.0,3462.9,1.40457608]
[1754233352816,2.599,3463.0,3462.9,1.03957608]
[1754233353015,2.599,3463.0,3462.9,21.41357608]
[1754233353519,2.599,3463.0,3462.9,22.44267608]
[1754233353718,2.599,3463.0,3462.9,2.06867608]
[1754233354221,2.599,3463.5,3463.4,1.0291]
[1754233354420,3.2078,3463.9,3463.4,0.3148]
[1754233354719,4.2806,3463.9,3463.8,1.60651]
[1754233355024,2.599,3463.9,3463.8,1.60651]
[1754233355422,2.599,3463.9,3463.5,0.3148]
[1754233355423,1.0728,3463.9,3463.5,0.3148]
[1754233355623,1.0728,3463.7,3463.6,0.365]
[1754233355923,1.0728,3463.7,3463.5,20.394]
[1754233356111,1.0809,3463.6,3463.5,20.394]
[1754233356316,0.988,3463.5,3463.3,0.89229]
[1754233356624,2.599,3463.1,3463.0,1.60664]
[1754233357018,2.599,3463.1,3463.0,21.1073]
[1754233357214,1.5262,3463.0,3462.9,21.43157608]
[1754233357419,2.599,3463.0,3462.9,1.03957608]
[1754233358426,6.38434,3463.0,3462.9,0.54697608]
[1754233358625,1.0728,3462.1,3462.0,41.561]
[1754233358823,1.0728,3462.1,3461.9,0.57772]
[1754233358824,1.0728,3461.9,3461.8,4.0407]
[1754233359018,2.599,3461.9,3461.8,4.0407]
[1754233359512,2.599,3461.9,3461.8,5.2717]
[1754233359711,0.5382,3462.5,3462.2,0.57766]
[1754233359912,3.746,3462.6,3462.5,2.0639]
[1754233360121,4.1221,3462.6,3462.5,2.0639]
[1754233360618,5.8068,3462.6,3462.2,0.5544]
[1754233360928,2.1537,3462.3,3462.2,23.10056]
[1754233361124,2.599,3462.3,3462.2,22.5229]
[1754233361522,2.599,3462.3,3462.2,2.0639]
[1754233361824,5.8068,3462.6,3462.5,2.0639]
[1754233362022,4.1221,3462.6,3462.5,2.0639]
[1754233362324,0.5776,3462.7,3462.4,20.466]
[1754233362925,1.5262,3462.5,3462.4,20.466]
[1754233363121,1.5262,3462.5,3462.1,0.57768]
[1754233363122,1.5262,3462.4,3462.3,21.05366]
[1754233363323,3.746,3462.8,3462.7,1.61559]
[1754233363522,3.2078,3462.8,3462.7,1.93039]
[1754233364025,3.2078,3462.8,3462.7,21.05259]
[1754233364026,3.7582,3462.8,3462.7,21.05259]
[1754233364227,3.2078,3462.8,3462.7,22.33579]
[1754233364524,3.2078,3463.3,3463.2,0.8355]
[1754233364721,3.2078,3463.3,3463.2,21.7612]
[1754233365120,4.236,3463.8,3463.4,0.57746]
[1754233365320,0.81416973,3463.7,3463.5,0.9739]
[1754233365524,0.5412,3462.8,3462.6,3.734]
[1754233365723,3.2078,3462.8,3462.4,20.48]
[1754233365924,1.0282,3462.6,3462.5,20.48]
[1754233366128,1.5786,3462.6,3462.5,20.48]
[1754233366625,1.5786,3462.6,3462.4,0.9739]
[1754233366820,0.5504,3463.1,3463.0,0.5262]
[1754233367026,2.39313853,3463.1,3463.0,0.9739]
[1754233367228,0.5504,3463.1,3463.0,0.9739]
[1754233367829,3.2078,3463.4,3463.3,0.57749]
[1754233368031,3.7582,3463.4,3463.3,1.86069]
[1754233368633,3.7582,3463.4,3463.3,1.55139]
[1754233368929,3.7582,3463.4,3463.3,0.9739]
[1754233369336,4.7864,3463.4,3463.3,0.9739]
[1754233370029,3.7582,3463.4,3463.3,0.9739]
[1754233371236,5.8177,3463.4,3463.3,2.0277]
[1754233371826,2.6099,3463.4,3463.3,1.58]
[1754233372025,0.5504,3463.7,3463.6,0.3793]
[1754233372229,3.2078,3463.8,3463.7,2.60512]
[1754233372434,3.2078,3463.8,3463.7,1.86062]
[1754233372726,3.7582,3463.8,3463.7,0.9739]
[1754233373231,3.7582,3463.8,3463.7,21.4419]
[1754233373633,0.5504,3463.8,3463.7,21.4419]
[1754233375532,0.5504,3464.1,3464.0,0.57736]
[1754233375730,3.2078,3464.2,3464.1,0.3093]
[1754233376028,3.7582,3464.2,3464.1,0.9739]
[1754233376234,4.1116,3464.2,3464.1,2.0277]
[1754233376538,3.7582,3464.2,3464.1,2.0277]
[1754233376729,3.7582,3464.2,3464.1,2.337]
[1754233376935,3.2078,3464.2,3464.1,2.337]
[1754233377234,0.5773,3464.5,3464.1,0.5262]
[1754233377539,2.6099,3464.3,3464.2,20.437]
[1754233377828,1.0313,3464.1,3464.0,0.4477]
[1754233378032,2.6099,3464.1,3464.0,20.449]
[1754233378336,2.6099,3463.8,3463.7,2.0277]
[1754233378531,2.6099,3463.8,3463.7,22.4717]
[1754233378930,2.6099,3463.8,3463.5,0.57745]
[1754233379133,3.2078,3464.0,3463.7,0.57742]
[1754233379331,2.6099,3463.9,3463.8,22.4667]
[1754233379531,0.5504,3463.9,3463.8,22.4667]
[1754233380027,0.6554,3463.6,3463.5,0.9739]
[1754233380232,2.6099,3463.6,3463.5,21.9425]
[1754233380428,2.6099,3463.6,3463.5,22.4667]
[1754233380732,1.2058,3463.6,3463.5,22.4667]
[1754233381322,2.6099,3463.6,3463.5,0.6745]
[1754233381526,1.0313,3463.6,3463.5,20.442]
[1754233381730,0.3534,3463.7,3463.6,2.60514]
[1754233382028,1.0313,3463.3,3463.2,1.63131]
[1754233382232,2.6099,3463.3,3463.2,22.06631]
[1754233382428,2.1229,3463.3,3463.2,22.06631]
[1754233382622,1.5817,3463.3,3463.2,0.57751]
[1754233382828,2.6099,3463.3,3463.2,22.4687]
[1754233383025,2.6099,3463.3,3463.2,0.3793]
[1754233383236,2.6099,3463.3,3463.2,20.455]
[1754233383532,0.9038,3463.3,3463.2,22.4827]
[1754233383728,0.5504,3463.3,3463.2,22.4797]
[1754233383929,1.445,3463.8,3463.7,1.0538]